fUST/lending_fUST_20250810
["ID","MTS","AMOUNT","RATE_DAILY","PERIOD"]
[378339490,1754832642982,-500.0,0.00021645,2]
[378339492,1754832642992,-2183.31810187,0.00021645,2]
[378339494,1754832643001,-500.0,0.00021645,2]
[378339496,1754832643011,-500.0,0.00021645,2]
[378339498,1754832643020,-500.0,0.00021645,2]
[378339500,1754832643029,-500.0,0.00021645,2]
[378339503,1754832643039,-500.0,0.00021645,2]
[378339505,1754832643048,-151.0,0.00021645,2]
[378339507,1754832643058,-151.0,0.00021645,2]
[378339509,1754832643067,-151.0,0.00021645,2]
[378339511,1754832643076,-151.0,0.00021645,2]
[378339513,1754832643086,-151.0,0.00021645,2]
[378339515,1754832643096,-151.0,0.00021645,2]
[378339517,1754832643105,-151.0,0.00021645,2]
[378339518,1754832643115,-151.0,0.00021645,2]
[378339521,1754832643127,-250.0,0.00021645,2]
[378339523,1754832643137,-151.0,0.00021645,2]
[378339525,1754832643147,-151.0,0.00021645,2]
[378339526,1754832643155,-250.0,0.00021645,2]
[378339529,1754832643165,-151.0,0.00021645,2]
[378339531,1754832643178,-250.0,0.00021645,2]
[378339534,1754832643193,-151.0,0.00021645,2]
[378339536,1754832643208,-250.0,0.00021645,2]
[378339538,1754832643220,-151.0,0.00021645,2]
[378339541,1754832643232,-151.0,0.00021645,2]
[378339543,1754832643246,-160.0,0.00021645,2]
[378339546,1754832643260,-215.44987349,0.00021645,2]
[378339548,1754832643273,-312.16666667,0.00021645,2]
[378339551,1754832643286,-160.0,0.00021645,2]
[378339553,1754832643299,-160.0,0.00021645,2]
[378339555,1754832643310,-4882.62898865,0.00021655,2]
[378339557,1754832643321,-231.96268195,0.00021656,2]
[378339560,1754832643334,-461.62346162,0.00021656,2]
[378339562,1754832643347,-160.0,0.00021656,2]
[378339565,1754832643360,-843.0869304,0.00021656,2]
[378339567,1754832643375,-160.0,0.00021656,2]
[378339570,1754832643388,-160.0,0.00021656,2]
[378339572,1754832643402,-527.86640923,0.00021656,2]
[378339575,1754832643415,-160.0,0.00021656,2]
[378339577,1754832643428,-160.0,0.00021656,2]
[378339580,1754832643443,-216.64838636,0.00021656,2]
[378339582,1754832643457,-12668.57659669,0.00021656,2]
[378339584,1754832643472,-160.0,0.00021659,2]
[378339587,1754832643485,-606.42121849,0.00021673,2]
[378339589,1754832643497,-500.0,0.00021673,2]
[378339592,1754832643511,-500.0,0.00021673,2]
[378339594,1754832643527,-500.0,0.00021673,2]
[378339597,1754832643540,-567.69740288,0.00021673,2]
[378339599,1754832643553,-500.0,0.00021673,2]
[378339601,1754832643564,-500.0,0.00021673,2]
[378339603,1754832643575,-500.0,0.00021673,2]
[378339605,1754832643588,-500.0,0.00021673,2]
[378339608,1754832643605,-500.0,0.00021673,2]
[378339610,1754832643617,-500.0,0.00021673,2]
[378339613,1754832643633,-500.30080758,0.00021673,2]
[378339615,1754832643644,-500.0,0.00021673,2]
[378339617,1754832643657,-500.0,0.00021673,2]
[378339619,1754832643669,-500.0,0.00021673,2]
[378339622,1754832643681,-500.0,0.00021673,2]
[378339624,1754832643691,-500.0,0.00021673,2]
[378339626,1754832643703,-151.0,0.000217,3]
[378339628,1754832643714,-160.0,0.00021784,2]
[378339630,1754832643726,-480.0,0.00021876,2]
[378339631,1754832643737,-308.0,0.000219,2]
[378339633,1754832643749,-565.87,0.00021912,2]
[378339636,1754832643761,-1216.13,0.00021912,2]
[378339638,1754832643773,-1151.49,0.00021912,2]
[378339640,1754832643784,-482.95675244,0.00021912,2]
[378339642,1754832643798,-460.0,0.00021913,2]
[378339644,1754832643809,-460.0,0.00021913,2]
[378339647,1754832643820,-460.0,0.00021913,2]
[378339649,1754832643832,-1798.04,0.00021913,2]
[378339651,1754832643844,-460.0,0.00021913,2]
[378339654,1754832643856,-1200.02,0.00021913,2]
[378339656,1754832643868,-460.0,0.00021913,2]
[378339657,1754832643882,-460.0,0.00021913,2]
[378339658,1754832643893,-491.06,0.00021913,2]
[378339659,1754832643905,-460.0,0.00021914,2]
[378339660,1754832643917,-460.0,0.00021914,2]
[378339661,1754832643928,-460.0,0.00021914,2]
[378339662,1754832643939,-971.99,0.00021914,2]
[378339663,1754832643951,-314.77,0.00021914,2]
[378339664,1754832643963,-460.0,0.00021914,2]
[378339665,1754832643975,-652.66,0.00021914,2]
[378339666,1754832643985,-460.0,0.00021914,2]
[378339667,1754832643997,-460.0,0.00021915,2]
[378339668,1754832644009,-460.0,0.00021915,2]
[378339669,1754832644020,-475.03,0.00021915,2]
[378339671,1754832644032,-740.87,0.00021915,2]
[378339673,1754832644044,-789.24,0.00021915,2]
[378339675,1754832644055,-440.5322303,0.00021915,2]
[378339677,1754832644066,-3027.39,0.00021915,2]
[378339679,1754832644078,-499.09,0.00021915,2]
[378339682,1754832644090,-997.24,0.00021915,2]
[378339684,1754832644101,-916.43,0.00021915,2]
[378339686,1754832644112,-988.15,0.00021915,2]
[378339688,1754832644125,-905.07,0.00021915,2]
[378339690,1754832644136,-151.0,0.00021916,2]
[378339693,1754832644148,-266.63285556,0.00021916,2]
[378339695,1754832644159,-151.0,0.00021916,2]
[378339697,1754832644170,-151.0,0.00021916,2]
[378339699,1754832644181,-151.0,0.00021916,2]
[378339701,1754832644193,-547.0,0.00021916,2]
[378339704,1754832644205,-151.0,0.00021916,2]
[378339706,1754832644215,-151.0,0.00021916,2]
[378339708,1754832644227,-151.0,0.00021916,2]
[378339710,1754832644238,-151.0,0.00021916,2]
[378339712,1754832644248,-204.51895134,0.00021916,2]
[378339714,1754832644257,-500.0,0.00021917,2]
[378339716,1754832644266,-500.0,0.00021917,2]
[378339718,1754832644275,-500.0,0.00021917,2]
[378339720,1754832644285,-500.0,0.00021917,2]
[378339722,1754832644294,-500.0,0.00021917,2]
[378339724,1754832644304,-500.0,0.00021917,2]
[378339726,1754832644313,-500.0,0.00021917,2]
[378339728,1754832644322,-500.0,0.00021917,2]
[378339730,1754832644332,-5365.91,0.00021917,2]
[378339747,1754832644457,-152.57967547,0.00021918,2]
[378339750,1754832644510,-219.0,0.00022,2]
[378339752,1754832644522,-1678.49,0.00022,2]
[378339754,1754832644531,-244.02,0.00022,2]
[378339756,1754832644541,-151.0,0.000221,5]
[378339758,1754832644550,-151.0,0.000221,5]
[378339760,1754832644559,-565.87,0.00022186,2]
[378339762,1754832644569,-1216.13,0.00022186,2]
[378339764,1754832644579,-1151.49,0.00022186,2]
[378339766,1754832644589,-460.0,0.00022187,2]
[378339768,1754832644599,-460.0,0.00022187,2]
[378339770,1754832644608,-460.0,0.00022187,2]
[378339772,1754832644618,-1798.04,0.00022187,2]
[378339774,1754832644629,-392.12844213,0.00022187,2]
[378339776,1754832644638,-1200.02,0.00022187,2]
[378339778,1754832644648,-460.0,0.00022187,2]
[378339780,1754832644658,-460.0,0.00022187,2]
[378339782,1754832644667,-491.06,0.00022187,2]
[378339784,1754832644676,-460.0,0.00022188,2]
[378339786,1754832644686,-500.0,0.00022188,2]
[378339788,1754832644695,-460.0,0.00022188,2]
[378339790,1754832644705,-460.0,0.00022188,2]
[378339792,1754832644713,-971.99,0.00022188,2]
[378339793,1754832644723,-299.35,0.00022188,2]
[378339795,1754832644732,-652.66,0.00022188,2]
[378339797,1754832644742,-460.0,0.00022188,2]
[378339799,1754832644751,-460.0,0.00022189,2]
[378339801,1754832644760,-460.0,0.00022189,2]
[378339803,1754832644769,-475.03,0.00022189,2]
[378339805,1754832644779,-740.87,0.00022189,2]
[378339807,1754832644788,-789.24,0.00022189,2]
[378339809,1754832644801,-3027.39,0.00022189,2]
[378339811,1754832644811,-499.09,0.00022189,2]
[378339813,1754832644821,-997.24,0.00022189,2]
[378339815,1754832644830,-916.43,0.00022189,2]
[378339817,1754832644842,-988.15,0.00022189,2]
[378339820,1754832644851,-905.07,0.00022189,2]
[378339822,1754832644861,-198.0,0.0002219,2]
[378339823,1754832644871,-151.0,0.0002219,2]
[378339825,1754832644881,-151.0,0.0002219,2]
[378339827,1754832644890,-151.0,0.0002219,2]
[378339830,1754832644900,-151.0,0.00022193,2]
[378339832,1754832644911,-501.6936613,0.00022221,2]
[378339834,1754832644920,-1000.0,0.00022221,2]
[378339836,1754832644929,-1000.0,0.00022221,2]
[378339837,1754832644939,-1000.0,0.00022221,2]
[378339839,1754832644947,-1000.0,0.00022221,2]
[378339841,1754832644957,-1000.0,0.00022221,2]
[378339843,1754832644966,-1000.0,0.00022221,2]
[378339845,1754832644975,-1000.0,0.00022221,2]
[378339847,1754832644985,-1004.29023985,0.00022221,2]
[378339850,1754832644994,-500.0,0.00022226,2]
[378339852,1754832645004,-536.22363848,0.00022306,2]
[378339853,1754832645013,-690.13184636,0.00022313,2]
[378339855,1754832645022,-260.0,0.00022332,2]
[378339857,1754832645031,-1473.61176075,0.00022435,2]
[378339859,1754832645040,-565.87,0.0002246,2]
[378339861,1754832645050,-1216.13,0.0002246,2]
[378339863,1754832645059,-1151.49,0.0002246,2]
[378339865,1754832645070,-460.0,0.00022461,2]
[378339867,1754832645079,-423.47328811,0.00022461,2]
[378339869,1754832645088,-460.0,0.00022461,2]
[378339871,1754832645097,-1798.04,0.00022461,2]
[378339873,1754832645106,-1200.02,0.00022461,2]
[378339875,1754832645116,-460.0,0.00022461,2]
[378339877,1754832645126,-460.0,0.00022461,2]
[378339879,1754832645136,-491.06,0.00022461,2]
[378339881,1754832645145,-460.0,0.00022462,2]
[378339883,1754832645155,-500.0,0.00022462,2]
[378339885,1754832645164,-460.0,0.00022462,2]
[378339887,1754832645174,-460.0,0.00022462,2]
[378339889,1754832645183,-971.99,0.00022462,2]
[378339891,1754832645193,-652.66,0.00022462,2]
[378339893,1754832645202,-460.0,0.00022462,2]
[378339895,1754832645211,-460.0,0.00022463,2]
[378339897,1754832645220,-207.4933236,0.00022463,2]
[378339899,1754832645229,-475.03,0.00022463,2]
[378339901,1754832645239,-740.87,0.00022463,2]
[378339903,1754832645248,-789.24,0.00022463,2]
[378339905,1754832645257,-3027.39,0.00022463,2]
[378339907,1754832645267,-499.09,0.00022463,2]
[378339909,1754832645277,-997.24,0.00022463,2]
[378339911,1754832645287,-916.43,0.00022463,2]
[378339913,1754832645296,-988.15,0.00022463,2]
[378339915,1754832645306,-905.07,0.00022463,2]
[378339918,1754832645316,-151.0,0.00022464,2]
[378339920,1754832645326,-245.0,0.00022464,2]
[378339922,1754832645335,-245.40955427,0.00022464,2]
[378339924,1754832645346,-151.0,0.0002255,2]
[378339926,1754832645356,-151.0,0.0002255,2]
[378339928,1754832645365,-366.71033123,0.0002255,2]
[378339930,1754832645376,-151.0,0.000226,8]
[378339932,1754832645385,-153.0,0.0002267,2]
[378339934,1754832645395,-153.0,0.0002267,2]
[378339936,1754832645404,-565.87,0.00022734,2]
[378339938,1754832645414,-1216.13,0.00022734,2]
[378339940,1754832645423,-1151.49,0.00022734,2]
[378339942,1754832645433,-460.0,0.00022735,2]
[378339944,1754832645442,-460.0,0.00022735,2]
[378339946,1754832645452,-1798.04,0.00022735,2]
[378339948,1754832645461,-1200.02,0.00022735,2]
[378339950,1754832645471,-460.0,0.00022735,2]
[378339952,1754832645480,-460.0,0.00022735,2]
[378339954,1754832645489,-491.06,0.00022735,2]
[378339956,1754832645498,-460.0,0.00022736,2]
[378339958,1754832645508,-500.0,0.00022736,2]
[378339960,1754832645518,-460.0,0.00022736,2]
[378339962,1754832645528,-460.0,0.00022736,2]
[378339964,1754832645537,-971.99,0.00022736,2]
[378339966,1754832645547,-652.66,0.00022736,2]
[378339968,1754832645556,-460.0,0.00022736,2]
[378339970,1754832645566,-460.0,0.00022737,2]
[378339972,1754832645576,-475.03,0.00022737,2]
[378339974,1754832645585,-740.87,0.00022737,2]
[378339976,1754832645595,-789.24,0.00022737,2]
[378339978,1754832645605,-3027.39,0.00022737,2]
[378339980,1754832645614,-499.09,0.00022737,2]
[378339982,1754832645625,-997.24,0.00022737,2]
[378339984,1754832645635,-916.43,0.00022737,2]
[378339986,1754832645644,-988.15,0.00022737,2]
[378339988,1754832645654,-905.07,0.00022737,2]
[378339990,1754832645664,-151.0,0.00022738,2]
[378339992,1754832645673,-1500.0,0.00022768,2]
[378339994,1754832645682,-1500.0,0.00022768,2]
[378339996,1754832645692,-1500.0,0.00022768,2]
[378339998,1754832645701,-1500.0,0.00022768,2]
[378340000,1754832645711,-1000.0,0.00022774,2]
[378340002,1754832645720,-360.0,0.0002288,2]
[378340004,1754832645730,-151.0,0.000229,6]
[378340006,1754832645739,-151.0,0.00023,10]
[378340008,1754832645748,-160.0,0.00023,3]
[378340010,1754832645757,-216.64838636,0.00023,3]
[378340012,1754832645766,-160.0,0.00023,3]
[378340014,1754832645775,-193.93783112,0.00023,2]
[378340016,1754832645785,-1359.7280243,0.00023,2]
[378340018,1754832645796,-1340.43618727,0.00023,2]
[378340020,1754832645806,-160.0,0.00023,3]
[378340022,1754832645815,-843.0869304,0.00023,3]
[378340024,1754832645825,-160.0,0.00023,2]
[378340026,1754832645836,-231.96268195,0.00023,3]
[378340028,1754832645850,-160.0,0.00023,3]
[378340030,1754832645859,-160.0,0.00023,3]
[378340031,1754832645868,-565.87,0.00023008,2]
[378340033,1754832645880,-1216.13,0.00023008,2]
[378340035,1754832645889,-1151.49,0.00023008,2]
[378340037,1754832645899,-460.0,0.00023009,2]
[378340040,1754832645911,-460.0,0.00023009,2]
[378340041,1754832645922,-1798.04,0.00023009,2]
[378340043,1754832645931,-1200.02,0.00023009,2]
[378340045,1754832645941,-317.29150587,0.00023009,2]
[378340047,1754832645950,-460.0,0.00023009,2]
[378340050,1754832645960,-491.06,0.00023009,2]
[378340051,1754832645970,-460.0,0.0002301,2]
[378340053,1754832645980,-500.0,0.0002301,2]
[378340055,1754832645989,-460.0,0.0002301,2]
[378340057,1754832645999,-460.0,0.0002301,2]
[378340059,1754832646008,-971.99,0.0002301,2]
[378340061,1754832646018,-652.66,0.0002301,2]
[378340063,1754832646027,-460.0,0.0002301,2]
[378340065,1754832646037,-460.0,0.00023011,2]
[378340067,1754832646046,-475.03,0.00023011,2]
[378340069,1754832646055,-740.87,0.00023011,2]
[378340071,1754832646064,-789.24,0.00023011,2]
[378340073,1754832646073,-3027.39,0.00023011,2]
[378340075,1754832646084,-499.09,0.00023011,2]
[378340077,1754832646093,-997.24,0.00023011,2]
[378340079,1754832646102,-916.43,0.00023011,2]
[378340081,1754832646112,-988.15,0.00023011,2]
[378340083,1754832646122,-905.07,0.00023011,2]
[378340085,1754832646131,-245.0,0.00023012,2]
[378340087,1754832646141,-151.0,0.00023014,2]
[378340089,1754832646151,-19187.29552238,0.00023014,2]
[378340091,1754832646163,-200.0,0.00023046,15]
[378340093,1754832646172,-200.0,0.00023046,15]
[378340095,1754832646181,-300.0,0.00023046,15]
[378340097,1754832646190,-15826.08184264,0.00023048,2]
[378340099,1754832646200,-214.55,0.00023094,2]
[378340101,1754832646209,-1678.49,0.00023188,2]
[378340103,1754832646218,-372.91866161,0.00023277,2]
[378340105,1754832646227,-500.0,0.00023277,2]
[378340107,1754832646236,-500.0,0.00023277,2]
[378340109,1754832646245,-500.0,0.00023277,2]
[378340111,1754832646255,-500.0,0.00023277,2]
[378340113,1754832646265,-500.21872809,0.00023277,2]
[378340115,1754832646274,-565.87,0.00023282,2]
[378340117,1754832646283,-1216.13,0.00023282,2]
[378340119,1754832646292,-1151.49,0.00023282,2]
[378340122,1754832646302,-460.0,0.00023283,2]
[378340124,1754832646311,-460.0,0.00023283,2]
[378340125,1754832646321,-1798.04,0.00023283,2]
[378340128,1754832646331,-1200.02,0.00023283,2]
[378340129,1754832646340,-460.0,0.00023283,2]
[378340131,1754832646349,-491.06,0.00023283,2]
[378340133,1754832646359,-460.0,0.00023284,2]
[378340134,1754832646368,-170.76069636,0.00023284,2]
[378340135,1754832646379,-460.0,0.00023284,2]
[378340136,1754832646388,-971.99,0.00023284,2]
[378340137,1754832646398,-652.66,0.00023284,2]
[378340138,1754832646407,-460.0,0.00023284,2]
[378340139,1754832646416,-460.0,0.00023285,2]
[378340140,1754832646427,-475.03,0.00023285,2]
[378340141,1754832646436,-740.87,0.00023285,2]
[378340142,1754832646445,-789.24,0.00023285,2]
[378340143,1754832646455,-3027.39,0.00023285,2]
[378340144,1754832646464,-499.09,0.00023285,2]
[378340145,1754832646473,-997.24,0.00023285,2]
[378340146,1754832646483,-916.43,0.00023285,2]
[378340147,1754832646492,-988.15,0.00023285,2]
[378340148,1754832646501,-905.07,0.00023285,2]
[378340149,1754832646510,-500.0,0.00023287,2]
[378340150,1754832646519,-500.0,0.00023287,2]
[378340151,1754832646528,-150.0,0.00023287,2]
[378340152,1754832646538,-500.0,0.00023288,2]
[378340153,1754832646547,-500.0,0.00023288,2]
[378340154,1754832646556,-400.0,0.00023288,2]
[378340155,1754832646566,-500.0,0.00023288,2]
[378340156,1754832646575,-150.0,0.00023288,2]
[378340157,1754832646584,-573.52765742,0.00023288,2]
[378340158,1754832646595,-2144.8945539,0.00023305,2]
[378340159,1754832646604,-2000.0,0.00023316,2]
[378340160,1754832646613,-2000.0,0.00023316,2]
[378340161,1754832646623,-2000.0,0.00023316,2]
[378340162,1754832646632,-2000.0,0.00023316,2]
[378340163,1754832646642,-151.0,0.000234,6]
[378340164,1754832646652,-382.0,0.00023407,2]
[378340165,1754832646662,-4882.62898865,0.00023409,2]
[378340166,1754832646671,-460.0,0.00023428,2]
[378340167,1754832646680,-151.0,0.000235,6]
[378340168,1754832646690,-151.0,0.000235,9]
[378340170,1754832646699,-1000.0,0.000235,2]
[378340171,1754832646709,-250.0,0.00023526,2]
[378340172,1754832646718,-565.87,0.00023556,2]
[378340173,1754832646728,-1216.13,0.00023556,2]
[378340175,1754832646738,-1151.49,0.00023556,2]
[378340177,1754832646747,-460.0,0.00023557,2]
[378340179,1754832646757,-460.0,0.00023557,2]
[378340181,1754832646766,-1798.04,0.00023557,2]
[378340183,1754832646776,-1200.02,0.00023557,2]
[378340185,1754832646786,-460.0,0.00023557,2]
[378340188,1754832646809,-491.06,0.00023557,2]
[378340191,1754832646821,-460.0,0.00023558,2]
[378340193,1754832646831,-460.0,0.00023558,2]
[378340195,1754832646843,-971.99,0.00023558,2]
[378340197,1754832646852,-652.66,0.00023558,2]
[378340199,1754832646862,-460.0,0.00023558,2]
[378340201,1754832646875,-460.0,0.00023559,2]
[378340203,1754832646885,-475.03,0.00023559,2]
[378340205,1754832646894,-740.87,0.00023559,2]
[378340207,1754832646904,-789.24,0.00023559,2]
[378340209,1754832646914,-3027.39,0.00023559,2]
[378340211,1754832646923,-499.09,0.00023559,2]
[378340213,1754832646933,-997.24,0.00023559,2]
[378340215,1754832646943,-916.43,0.00023559,2]
[378340217,1754832646952,-988.15,0.00023559,2]
[378340219,1754832646962,-905.07,0.00023559,2]
[378340221,1754832646971,-1473.61176075,0.00023567,2]
[378340223,1754832646981,-218.612,0.00023578,4]
[378340224,1754832646990,-5888.0,0.00023606,2]
[378340227,1754832647000,-173.200277,0.00023742,7]
[378340228,1754832647010,-177.721167,0.00023744,2]
[378340231,1754832647019,-1000.0,0.00023825,2]
[378340233,1754832647029,-1000.0,0.00023825,2]
[378340235,1754832647039,-1000.0,0.00023825,2]
[378340237,1754832647048,-2760.52738544,0.00023826,2]
[378340239,1754832647058,-565.87,0.0002383,2]
[378340241,1754832647067,-1216.13,0.0002383,2]
[378340243,1754832647077,-1151.49,0.0002383,2]
[378340245,1754832647086,-460.0,0.00023831,2]
[378340247,1754832647096,-1798.04,0.00023831,2]
[378340249,1754832647106,-1200.02,0.00023831,2]
[378340251,1754832647115,-460.0,0.00023831,2]
[378340253,1754832647125,-491.06,0.00023831,2]
[378340255,1754832647134,-460.0,0.00023832,2]
[378340257,1754832647144,-460.0,0.00023832,2]
[378340259,1754832647154,-971.99,0.00023832,2]
[378340276,1754832647298,-652.66,0.00023832,2]
[378340278,1754832647308,-460.0,0.00023832,2]
[378340280,1754832647317,-460.0,0.00023833,2]
[378340282,1754832647326,-475.03,0.00023833,2]
[378340284,1754832647335,-740.87,0.00023833,2]
[378340286,1754832647344,-789.24,0.00023833,2]
[378340288,1754832647354,-3027.39,0.00023833,2]
[378340290,1754832647363,-499.09,0.00023833,2]
[378340292,1754832647373,-997.24,0.00023833,2]
[378340294,1754832647382,-916.43,0.00023833,2]
[378340296,1754832647391,-988.15,0.00023833,2]
[378340298,1754832647400,-905.07,0.00023833,2]
[378340300,1754832647410,-285.90307636,0.00023835,2]
[378340302,1754832647419,-1000.0,0.00023836,2]
[378340304,1754832647428,-250.0,0.00023836,2]
[378340306,1754832647437,-500.0,0.00023864,2]
[378340308,1754832647446,-2500.0,0.00023864,2]
[378340310,1754832647455,-2500.0,0.00023864,2]
[378340312,1754832647464,-2500.0,0.00023864,2]
[378340314,1754832647474,-4556.80004899,0.0002388,2]
[378340316,1754832647484,-151.0,0.000239,5]
[378340318,1754832647493,-2144.41682139,0.000239,2]
[378340320,1754832647502,-560.0,0.00023976,2]
[378340322,1754832647511,-151.0,0.00024,7]
[378340323,1754832647520,-151.0,0.00024,10]
[378340325,1754832647529,-151.0,0.00024,7]
[378340328,1754832647539,-151.0,0.00024,7]
[378340330,1754832647548,-215.44987349,0.00024,3]
[378340332,1754832647558,-214.55,0.00024,2]
[378340334,1754832647567,-1700.03605386,0.00024,2]
[378340335,1754832647576,-323.08855856,0.00024,2]
[378340337,1754832647586,-455.63130091,0.00024,2]
[378340339,1754832647595,-164.12,0.00024,7]
[378340341,1754832647604,-150.0,0.00024003,2]
[378340344,1754832647614,-382.0,0.00024051,3]
[378340346,1754832647624,-565.87,0.00024104,2]
[378340348,1754832647634,-1216.13,0.00024104,2]
[378340350,1754832647644,-1151.49,0.00024104,2]
[378340352,1754832647654,-460.0,0.00024105,2]
[378340354,1754832647663,-1798.04,0.00024105,2]
[378340356,1754832647673,-1200.02,0.00024105,2]
[378340358,1754832647683,-460.0,0.00024105,2]
[378340360,1754832647692,-491.06,0.00024105,2]
[378340362,1754832647702,-478.57246964,0.00024106,2]
[378340364,1754832647711,-460.0,0.00024106,2]
[378340366,1754832647721,-971.99,0.00024106,2]
[378340368,1754832647732,-652.66,0.00024106,2]
[378340370,1754832647746,-460.0,0.00024106,2]
[378340372,1754832647755,-261.408448,0.00024107,2]
[378340374,1754832647763,-460.0,0.00024107,2]
[378340376,1754832647772,-475.03,0.00024107,2]
[378340378,1754832647782,-740.87,0.00024107,2]
[378340380,1754832647792,-789.24,0.00024107,2]
[378340382,1754832647804,-3027.39,0.00024107,2]
[378340384,1754832647813,-499.09,0.00024107,2]
[378340386,1754832647822,-997.24,0.00024107,2]
[378340388,1754832647831,-916.43,0.00024107,2]
[378340390,1754832647844,-988.15,0.00024107,2]
[378340392,1754832647854,-905.07,0.00024107,2]
[378340395,1754832647863,-351.50623377,0.00024109,2]
[378340397,1754832647873,-1406.02493507,0.00024109,2]
[378340399,1754832647882,-3163.55610391,0.00024109,2]
[378340400,1754832647891,-575.07687428,0.00024109,2]
[378340403,1754832647901,-2300.30749711,0.00024109,2]
[378340404,1754832647910,-720.0,0.00024142,2]
[378340406,1754832647919,-341.0,0.0002423,2]
[378340408,1754832647928,-2150.0,0.00024232,2]
[378340410,1754832647937,-971.0,0.00024232,2]
[378340412,1754832647946,-636.0,0.00024232,2]
[378340414,1754832647955,-408.0,0.00024232,2]
[378340416,1754832647965,-416.045,0.00024232,2]
[378340418,1754832647975,-341.0,0.00024273,2]
[378340420,1754832647984,-172.00826619,0.00024284,2]
[378340422,1754832647994,-4826.01274628,0.00024303,2]
[378340424,1754832648003,-283.94114085,0.00024356,13]
[378340426,1754832648012,-1500.0,0.00024373,2]
[378340428,1754832648021,-1500.0,0.00024373,2]
[378340430,1754832648030,-1500.0,0.00024373,2]
[378340432,1754832648040,-1678.49,0.00024375,2]
[378340434,1754832648050,-565.87,0.00024378,2]
[378340436,1754832648063,-1216.13,0.00024378,2]
[378340438,1754832648073,-1151.49,0.00024378,2]
[378340440,1754832648082,-460.0,0.00024379,2]
[378340442,1754832648092,-1798.04,0.00024379,2]
[378340444,1754832648101,-1200.02,0.00024379,2]
[378340446,1754832648111,-460.0,0.00024379,2]
[378340448,1754832648120,-491.06,0.00024379,2]
[378340450,1754832648130,-460.0,0.0002438,2]
[378340452,1754832648140,-971.99,0.0002438,2]
[378340454,1754832648149,-652.66,0.0002438,2]
[378340456,1754832648159,-460.0,0.0002438,2]
[378340458,1754832648169,-341.0,0.00024381,2]
[378340460,1754832648179,-460.0,0.00024381,2]
[378340462,1754832648188,-475.03,0.00024381,2]
[378340464,1754832648198,-740.87,0.00024381,2]
[378340466,1754832648207,-789.24,0.00024381,2]
[378340468,1754832648217,-3027.39,0.00024381,2]
[378340470,1754832648227,-499.09,0.00024381,2]
[378340472,1754832648236,-997.24,0.00024381,2]
[378340474,1754832648246,-916.43,0.00024381,2]
[378340476,1754832648256,-988.15,0.00024381,2]
[378340478,1754832648265,-905.07,0.00024381,2]
[378340480,1754832648275,-151.0,0.00024383,2]
[378340482,1754832648284,-19897.22545671,0.00024383,2]
[378340484,1754832648294,-1500.0,0.00024384,2]
[378340486,1754832648303,-350.0,0.00024384,2]
[378340488,1754832648313,-151.0,0.000244,10]
[378340490,1754832648322,-151.0,0.000244,8]